fUST/lending_fUST_20251020
["ID","MTS","AMOUNT","RATE_DAILY","PERIOD"]
[391907676,1760974241114,-1090.923273,0.00027,7]
[391907678,1760974241124,-151.0,0.00027,7]
[391907679,1760974241133,-1090.923273,0.00027,7]
[391907680,1760974241143,-1090.923273,0.00027,7]
[391907681,1760974241152,-151.0,0.00027,7]
[391907682,1760974241162,-240.0,0.00027,2]
[391907683,1760974241173,-1090.923273,0.00027,7]
[391907684,1760974241183,-151.0,0.00027,7]
[391907685,1760974241197,-151.0,0.00027,7]
[391907686,1760974241206,-151.0,0.00027,7]
[391907687,1760974241216,-151.0,0.00027,7]
[391907688,1760974241225,-151.0,0.00027,7]
[391907689,1760974241237,-151.0,0.00027,7]
[391907690,1760974241247,-151.0,0.00027,7]
[391907691,1760974241258,-151.0,0.00027,7]
[391907693,1760974241268,-151.0,0.00027,7]
[391907694,1760974241278,-151.0,0.00027,7]
[391907696,1760974241287,-1823.142174,0.00027,7]
[391907698,1760974241297,-1823.142174,0.00027,7]
[391907700,1760974241307,-1823.142174,0.00027,7]
[391907702,1760974241317,-1823.142174,0.00027,7]
[391907704,1760974241326,-180.969693,0.00027,7]
[391907706,1760974241336,-159.10792,0.00027,7]
[391907708,1760974241344,-151.0,0.00027,7]
[391907710,1760974241354,-180.969693,0.00027,7]
[391907712,1760974241365,-1297.143153,0.00027,7]
[391907714,1760974241374,-151.0,0.00027,7]
[391907716,1760974241384,-180.969693,0.00027,7]
[391907718,1760974241394,-151.0,0.00027,7]
[391907720,1760974241403,-1297.143153,0.00027,7]
[391907722,1760974241412,-151.0,0.00027,7]
[391907724,1760974241422,-831.41234,0.00027,7]
[391907726,1760974241431,-169.790875,0.00027,7]
[391907728,1760974241440,-1474.53122,0.00027,7]
[391907730,1760974241450,-1297.143153,0.00027,7]
[391907732,1760974241460,-219.803885,0.00027,7]
[391907734,1760974241470,-151.0,0.00027,7]
[391907736,1760974241479,-1474.53122,0.00027,7]
[391907738,1760974241489,-151.0,0.00027,7]
[391907740,1760974241498,-831.41234,0.00027,7]
[391907742,1760974241508,-219.803885,0.00027,7]
[391907744,1760974241517,-151.0,0.00027,7]
[391907746,1760974241526,-180.969693,0.00027,7]
[391907748,1760974241536,-1297.143153,0.00027,7]
[391907750,1760974241544,-1474.53122,0.00027,7]
[391907752,1760974241554,-205.28185,0.00027,7]
[391907754,1760974241564,-831.41234,0.00027,7]
[391907756,1760974241573,-151.0,0.00027,7]
[391907758,1760974241582,-219.803885,0.00027,7]
[391907760,1760974241591,-151.0,0.00027,7]
[391907762,1760974241600,-205.28185,0.00027,7]
[391907764,1760974241610,-1474.53122,0.00027,7]
[391907766,1760974241619,-831.41234,0.00027,7]
[391907768,1760974241629,-219.803885,0.00027,7]
[391907770,1760974241639,-205.28185,0.00027,7]
[391907772,1760974241648,-151.0,0.00027,7]
[391907774,1760974241657,-205.28185,0.00027,7]
[391907776,1760974241667,-151.0,0.00027,7]
[391907778,1760974241676,-151.0,0.00027,7]
[391907780,1760974241685,-151.0,0.00027,7]
[391907782,1760974241695,-10000.0,0.00027,7]
[391907784,1760974241704,-10000.0,0.00027,7]
[391907786,1760974241713,-10000.0,0.00027,7]
[391907788,1760974241723,-151.0,0.00027,7]
[391907790,1760974241732,-10000.0,0.00027,7]
[391907792,1760974241741,-151.0,0.00027,7]
[391907794,1760974241750,-151.0,0.00027,7]
[391907796,1760974241761,-10000.0,0.00027,7]
[391907798,1760974241770,-151.0,0.00027,7]
[391907800,1760974241780,-10000.0,0.00027,7]
[391907802,1760974241789,-152.094476,0.00027,7]
[391907804,1760974241798,-151.0,0.00027,7]
[391907806,1760974241807,-151.0,0.00027,7]
[391907808,1760974241816,-151.0,0.00027,7]
[391907810,1760974241827,-151.0,0.00027,7]
[391907811,1760974241836,-166.320321,0.00027,7]
[391907812,1760974241845,-151.0,0.00027,7]
[391907813,1760974241855,-163.487828,0.00027,7]
[391907814,1760974241865,-166.320321,0.00027,7]
[391907815,1760974241875,-166.320321,0.00027,7]
[391907816,1760974241885,-166.320321,0.00027,7]
[391907817,1760974241895,-443.154781,0.00027,7]
[391907818,1760974241904,-443.154781,0.00027,7]
[391907819,1760974241913,-443.154781,0.00027,7]
[391907820,1760974241923,-443.154781,0.00027,7]
[391907821,1760974241932,-151.0,0.00027,7]
[391907822,1760974241941,-151.0,0.00027,7]
[391907823,1760974241951,-151.0,0.00027,7]
[391907824,1760974241960,-151.0,0.00027,7]
[391907825,1760974241969,-151.0,0.00027,7]
[391907826,1760974241978,-434.315915,0.00027,7]
[391907827,1760974241987,-434.315915,0.00027,7]
[391907828,1760974241997,-151.0,0.00027,7]
[391907829,1760974242008,-151.0,0.00027,7]
[391907830,1760974242018,-434.315915,0.00027,7]
[391907831,1760974242027,-151.0,0.00027,7]
[391907832,1760974242036,-151.0,0.00027,7]
[391907833,1760974242046,-434.315915,0.00027,7]
[391907834,1760974242055,-151.0,0.00027,7]
[391907835,1760974242065,-192.259718,0.00027,7]
[391907836,1760974242074,-192.259718,0.00027,7]
[391907837,1760974242083,-151.0,0.00027,7]
[391907838,1760974242092,-192.259718,0.00027,7]
[391907839,1760974242102,-192.259718,0.00027,7]
[391907840,1760974242111,-151.0,0.00027,7]
[391907841,1760974242122,-151.0,0.00027,7]
[391907842,1760974242132,-151.0,0.00027,7]
[391907843,1760974242142,-151.0,0.00027,7]
[391907844,1760974242151,-151.0,0.00027,7]
[391907845,1760974242161,-261.384855,0.00027,7]
[391907846,1760974242171,-151.0,0.00027,7]
[391907847,1760974242180,-151.0,0.00027,7]
[391907848,1760974242194,-261.384855,0.00027,7]
[391907849,1760974242203,-151.0,0.00027,7]
[391907850,1760974242212,-261.384855,0.00027,7]
[391907851,1760974242223,-151.0,0.00027,7]
[391907852,1760974242234,-261.384855,0.00027,7]
[391907853,1760974242244,-151.0,0.00027,7]
[391907854,1760974242253,-211.958132,0.00027,7]
[391907855,1760974242264,-151.0,0.00027,7]
[391907856,1760974242274,-211.958132,0.00027,7]
[391907857,1760974242284,-158.829495,0.00027,7]
[391907858,1760974242294,-1483.852699,0.00027,7]
[391907859,1760974242304,-1483.852699,0.00027,7]
[391907860,1760974242314,-211.958132,0.00027,7]
[391907861,1760974242323,-1483.852699,0.00027,7]
[391907862,1760974242332,-211.958132,0.00027,7]
[391907863,1760974242342,-1483.852699,0.00027,7]
[391907864,1760974242351,-151.0,0.00027,2]
[391907865,1760974242360,-151.0,0.00027,7]
[391907866,1760974242370,-151.0,0.00027,7]
[391907867,1760974242379,-151.0,0.00027,7]
[391907868,1760974242388,-151.0,0.00027,7]
[391907869,1760974242398,-151.0,0.00027,7]
[391907870,1760974242407,-151.0,0.00027,7]
[391907871,1760974242416,-151.0,0.00027,7]
[391907872,1760974242427,-151.0,0.00027,7]
[391907873,1760974242436,-151.0,0.00027,7]
[391907874,1760974242446,-151.0,0.00027,7]
[391907875,1760974242456,-151.0,0.00027,7]
[391907876,1760974242465,-151.0,0.00027,7]
[391907877,1760974242476,-151.0,0.00027,7]
[391907878,1760974242486,-151.0,0.00027,7]
[391907879,1760974242496,-216.547356,0.00027,7]
[391907880,1760974242506,-61983.84444914,0.00027,3]
[391907881,1760974242516,-151.0,0.00027,7]
[391907882,1760974242526,-151.0,0.00027,7]
[391907883,1760974242537,-250.06454488,0.00027,7]
[391907884,1760974242547,-256.031148,0.00027,7]
[391907885,1760974242558,-256.031148,0.00027,7]
[391907886,1760974242569,-151.0,0.00027,7]
[391907887,1760974242581,-151.0,0.00027,7]
[391907888,1760974242592,-256.031148,0.00027,7]
[391907889,1760974242601,-256.031148,0.00027,7]
[391907891,1760974242611,-282.777594,0.00027,7]
[391907892,1760974242621,-1059.156503,0.00027,7]
[391907893,1760974242630,-282.777594,0.00027,7]
[391907894,1760974242639,-282.777594,0.00027,7]
[391907895,1760974242651,-1059.156503,0.00027,7]
[391907896,1760974242661,-151.0,0.00027,7]
[391907897,1760974242671,-151.0,0.00027,7]
[391907898,1760974242682,-151.0,0.00027,7]
[391907899,1760974242693,-151.0,0.00027,7]
[391907900,1760974242702,-308.444438,0.00027,7]
[391907901,1760974242713,-282.777594,0.00027,7]
[391907902,1760974242723,-1059.156503,0.00027,7]
[391907903,1760974242733,-151.0,0.00027,7]
[391907904,1760974242743,-308.444438,0.00027,7]
[391907905,1760974242752,-446.45912168,0.00027048,2]
[391907906,1760974242762,-232.70724412,0.0002714,2]
[391907907,1760974242771,-260.0,0.00027143,2]
[391907909,1760974242780,-1500.0,0.00027163,2]
[391907912,1760974242789,-520.68978413,0.00027164,2]
[391907915,1760974242798,-2500.0,0.00027164,2]
[391907916,1760974242809,-450.0,0.00027368,2]
[391907917,1760974242818,-350.0,0.00027368,2]
[391907919,1760974242829,-773.97,0.00027377,2]
[391907921,1760974242838,-151.0,0.00027397,30]
[391907922,1760974242848,-150.0,0.00027397,5]
[391907924,1760974242858,-22529.4,0.000274,7]
[391907925,1760974242867,-3000.0,0.00027412,5]
[391907926,1760974242877,-1507.1927802,0.00027412,5]
[391907927,1760974242886,-13543.35366489,0.000275,2]
[391907928,1760974242896,-2540.16,0.000276,2]
[391907929,1760974242907,-262.5,0.000276,2]
[391907930,1760974242916,-360.0,0.00027691,2]
[391907931,1760974242926,-2000.0,0.00027711,5]
[391907932,1760974242935,-3000.0,0.00027712,5]
[391907933,1760974242944,-160.0,0.0002775,2]
[391907934,1760974242954,-192.676518,0.00027769,20]
[391907935,1760974242963,-159.733832,0.00027769,20]
[391907936,1760974242973,-427.5912539,0.00027809,2]
[391907937,1760974242983,-600.0,0.00027916,5]
[391907938,1760974242994,-450.0,0.00027916,5]
[391907939,1760974243005,-172.271,0.00027935,18]
[391907940,1760974243015,-250.0,0.00027945,5]
[391907941,1760974243025,-3500.0,0.0002796,5]
[391907942,1760974243035,-180.0,0.00028,2]
[391907943,1760974243045,-285.0,0.000282,2]
[391907944,1760974243056,-15495.96,0.000282,4]
[391907945,1760974243065,-460.0,0.00028239,2]
[391907946,1760974243075,-2515.50384054,0.00028258,5]
[391907947,1760974243085,-3500.0,0.0002826,5]
[391907948,1760974243095,-683.61310881,0.00028464,5]
[391907949,1760974243104,-550.0,0.00028464,5]
[391907951,1760974243114,-350.0,0.00028493,5]
[391907952,1760974243124,-104533.54639617,0.000285,7]
[391907953,1760974243295,-4000.0,0.00028508,5]
[391907954,1760974243305,-156.588327,0.00028638,20]
[391907955,1760974243315,-192.676518,0.00028638,20]
[391907956,1760974243325,-159.733832,0.00028638,20]
[391907957,1760974243335,-989.12601571,0.0002876,2]
[391907958,1760974243344,-4000.0,0.0002876,5]
[391907959,1760974243354,-2318.4149331,0.0002876,2]
[391907960,1760974243363,-250.31971598,0.0002876,2]
[391907961,1760974243373,-560.0,0.00028787,2]
[391907962,1760974243382,-307.5,0.000288,2]
[391907963,1760974243391,-169.83253239,0.000288,7]
[391907964,1760974243400,-4000.0,0.00028808,5]
[391907965,1760974243410,-150.0,0.00028873,30]
[391907966,1760974243420,-22529.4,0.000289,7]
[391907967,1760974243429,-587.0,0.00028974,2]
[391907968,1760974243439,-881.98862225,0.00029,2]
[391907969,1760974243449,-1169.01441972,0.00029,2]
[391907970,1760974243459,-502.44369659,0.00029,7]
[391907971,1760974243468,-307.02076465,0.00029012,5]
[391907972,1760974243478,-4500.0,0.00029056,5]
[391907973,1760974243487,-660.0,0.00029335,2]
[391907974,1760974243497,-4500.0,0.00029356,5]
[391907975,1760974243507,-151.0,0.000294,16]
[391907976,1760974243517,-330.0,0.000294,2]
[391907977,1760974243527,-156.588327,0.00029507,20]
[391907978,1760974243536,-192.676518,0.00029507,20]
[391907979,1760974243546,-159.733832,0.00029507,20]
[391907980,1760974243555,-5000.0,0.00029554,2]
[391907981,1760974243566,-71589.98523032,0.0002956,2]
[391907982,1760974243575,-151.0,0.0002956,30]
[391907983,1760974243584,-151.0,0.0002956,30]
[391907984,1760974243593,-151.0,0.0002956,30]
[391907985,1760974243603,-151.0,0.0002956,30]
[391907986,1760974243612,-308.444438,0.0002956,7]
[391907987,1760974243622,-151.0,0.0002956,30]
[391907988,1760974243632,-1500.0,0.00029604,5]
[391907989,1760974243642,-179.71246006,0.00029701,4]
[391907990,1760974243651,-159.97751647,0.00029775,7]
[391907991,1760974243661,-2540.16,0.000298,2]
[391907992,1760974243670,-760.0,0.00029883,2]
[391907993,1760974243679,-5000.0,0.00029904,5]
[391907994,1760974243689,-231.24911987,0.0003,21]
[391907995,1760974243698,-192.676518,0.0003,15]
[391907996,1760974243708,-159.733832,0.0003,15]
[391907997,1760974243718,-1292.77429664,0.0003,2]
[391907998,1760974243727,-7293.09724818,0.0003,2]
[391907999,1760974243736,-27601.60965041,0.0003,3]
[391908000,1760974243746,-3425.67918834,0.0003,2]
[391908001,1760974243758,-1189.0,0.0003,45]
[391908002,1760974243767,-785.81490251,0.0003,60]
[391908003,1760974243777,-294.23482915,0.0003,60]
[391908004,1760974243786,-8051.06919745,0.0003,2]
[391908005,1760974243796,-200.31104838,0.0003,2]
[391908006,1760974243805,-151.0,0.0003,30]
[391908007,1760974243815,-1483.852699,0.0003,30]
[391908008,1760974243825,-1483.852699,0.0003,30]
[391908009,1760974243834,-1483.852699,0.0003,30]
[391908010,1760974243844,-1483.852699,0.0003,30]
[391908011,1760974243853,-151.0,0.0003,30]
[391908012,1760974243863,-151.0,0.0003,30]
[391908013,1760974243872,-151.0,0.0003,30]
[391908014,1760974243882,-153.28037476,0.0003,30]
[391908015,1760974243892,-151.0,0.0003,30]
[391908016,1760974243902,-151.0,0.0003,30]
[391908017,1760974243911,-151.0,0.0003,30]
[391908018,1760974243920,-173.517632,0.0003,30]
[391908019,1760974243929,-151.0,0.0003,30]
[391908020,1760974243938,-151.0,0.0003,30]
[391908021,1760974243947,-151.0,0.0003,30]
[391908022,1760974243956,-151.0,0.0003,30]
[391908023,1760974243966,-151.0,0.0003,30]
[391908024,1760974243976,-151.0,0.0003,30]
[391908025,1760974243985,-151.0,0.0003,30]
[391908026,1760974243995,-256.031148,0.0003,30]
[391908027,1760974244005,-151.0,0.0003,30]
[391908028,1760974244015,-256.031148,0.0003,30]
[391908029,1760974244025,-151.0,0.0003,30]
[391908030,1760974244035,-256.031148,0.0003,30]
[391908031,1760974244045,-256.031148,0.0003,30]
[391908032,1760974244055,-282.777594,0.0003,30]
[391908033,1760974244065,-1059.156503,0.0003,30]
[391908034,1760974244074,-282.777594,0.0003,30]
[391908035,1760974244083,-282.777594,0.0003,30]
[391908036,1760974244093,-1059.156503,0.0003,30]
[391908037,1760974244103,-282.777594,0.0003,30]
[391908038,1760974244112,-1059.156503,0.0003,30]
[391908039,1760974244123,-352.5,0.0003,2]
[391908040,1760974244133,-300.0,0.000301,2]
[391908041,1760974244143,-300.0,0.000301,2]
[391908042,1760974244152,-381.86975226,0.0003012,7]
[391908043,1760974244162,-285.59600149,0.0003013,2]
[391908044,1760974244171,-150.0,0.00030248,30]
[391908045,1760974244181,-156.588327,0.00030376,20]
[391908046,1760974244194,-192.676518,0.00030376,20]
[391908047,1760974244205,-159.733832,0.00030376,20]
[391908048,1760974244215,-1000.0,0.000304,14]
[391908049,1760974244225,-197.55868691,0.000304,14]
[391908050,1760974244235,-860.0,0.00030431,2]
[391908051,1760974244245,-5500.0,0.00030452,5]
[391908052,1760974244255,-375.0,0.000306,2]
[391908053,1760974244268,-456.0,0.00030769,2]
[391908054,1760974244278,-880.9823449,0.0003079,30]
[391908055,1760974244288,-22529.4,0.000308,7]
[391908056,1760974244297,-816.0,0.00030853,2]
[391908057,1760974244307,-150.0,0.00030973,5]
[391908058,1760974244316,-960.0,0.00030979,2]
[391908059,1760974244325,-303.60548378,0.0003099,2]
[391908060,1760974244335,-2593.15185695,0.00031,120]
[391908061,1760974244345,-203.81967809,0.00031,120]
[391908062,1760974244355,-375.53937661,0.00031,120]
[391908063,1760974244364,-213.13086188,0.00031,120]
[391908064,1760974244374,-425.53646074,0.00031,120]
[391908065,1760974244384,-165.92119716,0.00031,120]
[391908066,1760974244393,-204.00726077,0.00031,120]
[391908067,1760974244403,-6000.0,0.00031,5]
[391908068,1760974244412,-1414.82192606,0.00031118,2]
[391908069,1760974244422,-168.0,0.00031141,2]
[391908070,1760974244432,-152.36,0.00031157,15]
[391908071,1760974244440,-397.5,0.000312,2]
[391908072,1760974244450,-168.0,0.000312,2]
[391908073,1760974244459,-152.36,0.00031257,15]
[391908074,1760974244469,-153.14058559,0.0003127,2]
[391908075,1760974244479,-152.36,0.00031357,15]
[391908076,1760974244488,-1414.82192606,0.00031391,2]
[391908077,1760974244498,-823.0,0.00031399,2]
[391908078,1760974244508,-2540.16,0.000314,2]
[391908079,1760974244517,-444.90422293,0.00031409,2]
[391908080,1760974244527,-800.82760127,0.00031409,2]
[391908081,1760974244536,-1423.69351336,0.00031409,2]
[391908082,1760974244546,-2224.52111463,0.00031409,2]
[391908083,1760974244555,-3203.31040507,0.00031409,2]
[391908084,1760974244565,-4360.06138467,0.00031409,2]
[391908085,1760974244575,-1250.65176638,0.00031409,2]
[391908086,1760974244901,-4444.12228707,0.00031409,2]
[391908087,1760974244911,-7207.4484114,0.00031409,2]
[391908088,1760974244922,-153.0,0.00031441,2]
[391908089,1760974244934,-153.0,0.00031443,2]
[391908090,1760974244944,-153.0,0.00031443,2]
[391908091,1760974244956,-152.36,0.00031457,15]
[391908092,1760974244967,-250.0,0.00031521,5]
[391908093,1760974244979,-1060.0,0.00031527,2]
[391908094,1760974244988,-1414.82192606,0.00031535,2]
[391908095,1760974244999,-6500.0,0.00031548,5]
[391908096,1760974245010,-152.36,0.00031557,15]
[391908097,1760974245019,-571.57072403,0.00031567,2]
[391908098,1760974245029,-1028.82730325,0.00031567,2]
[391908099,1760974245039,-1188.66776341,0.00031567,2]
[391908100,1760974245604,-488.99430784,0.00024687,10]
[391908101,1760974245627,-56.20569216,0.00024687,10]
[391908102,1760974245637,-500.0,0.00024696,2]
[391908103,1760974245646,-500.0,0.0002497,2]
[391908104,1760974245656,-500.0,0.00025244,2]
[391908105,1760974245665,-500.0,0.00025518,2]
[391908106,1760974245675,-308.444438,0.00027,7]
[391908107,1760974245684,-308.444438,0.0002956,7]
[391908108,1760974245694,-67.88965623,0.0002956,7]
[391908135,1760974246248,-500.0,0.00025792,2]
[391908137,1760974246263,-500.0,0.00026066,2]
[391908139,1760974246272,-500.0,0.0002634,2]
[391908141,1760974246282,-500.0,0.00026614,2]
[391908143,1760974246291,-500.0,0.00026888,2]
[391908145,1760974246300,-151.0,0.00027,7]
[391908147,1760974246311,-308.444438,0.00027,7]
[391908149,1760974246321,-1059.156503,0.00027,7]
[391908151,1760974246330,-151.0,0.00027,7]
[391908153,1760974246339,-240.55478177,0.0002956,7]
[391908155,1760974246349,-151.0,0.0002956,30]
[391908157,1760974246358,-308.444438,0.0002956,7]
[391908159,1760974246367,-151.0,0.0002956,30]
[391908161,1760974246376,-1059.156503,0.0003,30]
[391908163,1760974246388,-640.35855347,0.00031567,2]
[391908165,1760974246397,-2857.85362013,0.00031567,2]
[391908167,1760974246407,-4115.30921299,0.00031567,2]
[391908169,1760974246416,-150.0,0.00031622,30]
[391908171,1760974246426,-168.0,0.0003164,2]
[391908174,1760974246435,-152.36,0.00031657,15]
[391908177,1760974246445,-151.0,0.000317,20]
[391908180,1760974246454,-152.36,0.00031757,15]
[391908183,1760974246463,-420.0,0.000318,2]
[391908186,1760974246473,-1414.82192606,0.00031833,2]
[391908188,1760974246482,-152.36,0.00031857,15]
[391908190,1760974246491,-2593.15185695,0.000319,120]
[391908192,1760974246500,-203.81967809,0.000319,120]
[391908194,1760974246511,-375.53937661,0.000319,120]
[391908196,1760974246519,-425.53646074,0.000319,120]
[391908198,1760974246529,-165.92119716,0.000319,120]
[391908200,1760974246538,-816.0,0.00031934,7]
[391908202,1760974246548,-152.36,0.00031957,15]
[391908204,1760974246557,-816.0,0.00031974,2]
[391908206,1760974246567,-7844.08763176,0.00032,30]
[391908208,1760974246576,-192.676518,0.00032018,15]
[391908210,1760974246586,-159.733832,0.00032018,15]
[391908212,1760974246595,-152.36,0.00032057,15]
[391908214,1760974246604,-800.0,0.00032062,2]
[391908216,1760974246613,-350.0,0.00032068,5]
[391908218,1760974246623,-1160.0,0.00032075,2]
[391908220,1760974246632,-1414.82192606,0.00032089,2]
[391908222,1760974246641,-1634.79067487,0.00032096,5]
[391908224,1760974246650,-152.36,0.00032157,15]
[391908226,1760974246661,-22529.4,0.000322,7]
[391908228,1760974246670,-152.36,0.00032257,15]
[391908230,1760974246681,-152.36,0.00032357,15]
[391908231,1760974246689,-1414.82192606,0.00032365,2]
[391908232,1760974246698,-442.5,0.000324,2]
[391908233,1760974246707,-816.0,0.00032417,2]
[391908234,1760974246715,-152.36,0.00032457,15]
[391908235,1760974246724,-250.0,0.00032488,2]
[391908236,1760974246733,-152.36,0.00032557,15]
[391908237,1760974246742,-168.0,0.00032589,2]
[391908238,1760974246751,-2540.16,0.000326,2]
[391908239,1760974246760,-189.82742202,0.00032616,5]
[391908240,1760974246769,-1260.0,0.00032623,2]
[391908241,1760974246778,-168.0,0.00032638,2]
[391908242,1760974246787,-152.36,0.00032657,15]
[391908244,1760974246796,-1414.82192606,0.00032747,2]
[391908245,1760974246804,-152.36,0.00032757,15]
[391908247,1760974246815,-168.0,0.000328,2]
[391908249,1760974246824,-152.36,0.00032857,15]
[391908251,1760974246833,-2999.0,0.00032876,120]
[391908253,1760974246843,-151.0,0.00032877,30]
[391908255,1760974246852,-800.0,0.00032891,2]
[391908257,1760974246861,-2593.15185695,0.000329,120]
[391908259,1760974246870,-203.81967809,0.000329,120]
[391908261,1760974246879,-375.53937661,0.000329,120]
[391908263,1760974246889,-425.53646074,0.000329,120]
[391908265,1760974246898,-1000.0,0.00032914,2]
[391908267,1760974246908,-1000.0,0.00032914,2]
[391908269,1760974246917,-1000.0,0.00032914,2]
[391908271,1760974246927,-1000.0,0.00032914,2]
[391908273,1760974246937,-1000.0,0.00032914,2]
[391908275,1760974246946,-1000.0,0.00032914,2]
[391908277,1760974246955,-1039.57200299,0.00032914,2]
[391908279,1760974246964,-151.76994319,0.00032921,7]
[391908281,1760974246973,-250.0,0.00032921,7]
[391908283,1760974246982,-500.0,0.00032921,7]
[391908285,1760974246991,-250.0,0.00032921,7]
[391908287,1760974247000,-500.0,0.00032921,7]
[391908289,1760974247010,-250.0,0.00032921,7]
[391908291,1760974247020,-500.0,0.00032921,7]
[391908293,1760974247029,-250.0,0.00032921,7]
[391908295,1760974247038,-500.0,0.00032921,7]
[391908297,1760974247047,-514.84070869,0.00032921,7]
[391908299,1760974247057,-151.0,0.00032921,7]
[391908301,1760974247066,-250.0,0.00032921,7]
[391908303,1760974247075,-500.0,0.00032921,7]
[391908305,1760974247085,-533.88981491,0.00032921,7]
[391908307,1760974247095,-151.0,0.00032921,7]
[391908309,1760974247104,-250.0,0.00032921,7]
[391908311,1760974247114,-500.0,0.00032921,7]
[391908313,1760974247124,-553.64373807,0.00032921,7]
[391908315,1760974247134,-151.0,0.00032921,7]
[391908317,1760974247144,-500.0,0.00032921,7]
[391908319,1760974247154,-250.0,0.00032921,7]
[391908321,1760974247164,-574.12855637,0.00032921,7]
[391908323,1760974247174,-500.0,0.00032921,7]
[391908325,1760974247186,-151.0,0.00032921,7]
[391908327,1760974247196,-250.0,0.00032921,7]
[391908329,1760974247206,-595.37131296,0.00032921,7]
[391908331,1760974247215,-500.0,0.00032921,7]
[391908333,1760974247225,-250.0,0.00032921,7]
[391908335,1760974247235,-151.0,0.00032921,7]
[391908337,1760974247245,-617.40005154,0.00032921,7]
[391908339,1760974247256,-250.0,0.00032921,7]
[391908341,1760974247266,-500.0,0.00032921,7]
[391908343,1760974247276,-640.24385345,0.00032921,7]
[391908345,1760974247285,-290.08453086,0.00032921,7]
[391908347,1760974247295,-187.78006525,0.00032921,7]
[391908349,1760974247304,-250.0,0.00032921,7]
[391908351,1760974247314,-500.0,0.00032921,7]
[391908353,1760974247323,-663.93287602,0.00032921,7]
[391908355,1760974247332,-194.72792766,0.00032921,7]
[391908357,1760974247342,-250.0,0.00032921,7]
[391908359,1760974247352,-688.49839244,0.00032921,7]
[391908361,1760974247361,-500.0,0.00032921,7]
[391908363,1760974247371,-201.93286099,0.00032921,7]
[391908365,1760974247381,-713.97283296,0.00032921,7]
[391908367,1760974247392,-250.0,0.00032921,7]
[391908369,1760974247401,-500.0,0.00032921,7]
[391908371,1760974247411,-209.40437684,0.00032921,7]
[391908374,1760974247421,-250.0,0.00032921,7]
[391908376,1760974247430,-740.38982778,0.00032921,7]
[391908378,1760974247440,-217.15233878,0.00032921,7]
[391908380,1760974247450,-767.7842514,0.00032921,7]
[391908382,1760974247460,-225.18697532,0.00032921,7]
[391908384,1760974247470,-796.19226871,0.00032921,7]
[391908386,1760974247480,-233.51889341,0.00032921,7]
[391908388,1760974247490,-825.65138265,0.00032921,7]
[391908390,1760974247500,-242.15909246,0.00032921,7]
[391908392,1760974247510,-251.11897888,0.00032921,7]
[391908394,1760974247520,-260.4103811,0.00032921,7]
[391908396,1760974247529,-270.0455652,0.00032921,7]
[391908398,1760974247539,-280.03725112,0.00032921,7]
[391908400,1760974247548,-322.6107,0.00032921,7]